bitfinex/quotes_ETHUSD_20250529
["timestamp","ask_amount","ask_price","bid_price","bid_amount"]
[1748544770918,0.232,2655.6,2655.5,22.19352129]
[1748544771082,0.232,2655.6,2655.5,20.02124129]
[1748544771284,0.232,2655.6,2655.5,20.24109713]
[1748544771921,4.20836748,2657.8,2655.6,1.0203]
[1748544772099,4.20836748,2657.8,2655.5,28.53837208]
[1748544772100,3.76278372,2657.7,2656.4,1.89068829]
[1748544772423,4.0,2657.2,2656.0,19.072164]
[1748544772715,4.0,2657.2,2656.0,14.742154]
[1748544772920,4.0,2657.2,2656.1,13.845074]
[1748544772921,0.4,2657.1,2656.1,13.845074]
[1748544773082,0.4,2657.1,2656.1,12.045074]
[1748544773413,0.4,2657.1,2656.2,11.716074]
[1748544774118,4.0,2657.0,2656.2,11.716074]
[1748544774486,0.4,2657.1,2656.3,1.0203]
[1748544774688,3.999,2657.3,2656.4,14.5149624]
[1748544774996,3.76265191,2657.7,2656.3,2.2939374]
[1748544774997,1.0927,2657.1,2656.3,5.5352624]
[1748544775195,5.0917,2657.1,2656.3,4.5149624]
[1748544775593,1.1051,2657.0,2656.2,12.065273]
[1748544775793,1.1051,2657.0,2656.1,11.425282]
[1748544775996,0.51041,2656.9,2656.1,11.425282]
[1748544776322,1.0446,2656.8,2656.1,10.610424]
[1748544776531,1.0446,2656.8,2656.1,3.019794]
[1748544776828,1.0446,2656.8,2656.0,1.09]
[1748544777129,1.0446,2656.8,2656.1,12.344794]
[1748544777439,1.0446,2656.8,2656.1,11.506794]
[1748544777591,1.0446,2656.8,2656.3,0.6]
[1748544777793,3.998,2656.7,2656.3,0.6]
[1748544778134,1.0446,2656.8,2656.3,0.6]
[1748544778309,3.998,2656.7,2656.3,0.6]
[1748544779528,1.1275,2657.0,2656.4,9.28352585]
[1748544779740,1.1275,2657.0,2656.3,5.11518185]
[1748544780040,1.1275,2657.0,2656.4,12.4379]
[1748544780188,1.1275,2657.0,2656.4,11.0175]
[1748544780385,1.0678,2656.9,2656.4,10.7985]
[1748544781212,1.0678,2656.9,2656.6,1.89068829]
[1748544782090,1.0678,2657.1,2656.8,10.0]
[1748544782427,1.0678,2657.1,2656.7,14.537275]
[1748544782601,1.0678,2657.1,2656.7,11.32684]
[1748544783707,1.0678,2657.1,2656.8,12.3839]
[1748544784427,1.0678,2657.1,2656.7,1.42352283]
[1748544784728,1.0678,2657.1,2656.4,17.232382]
[1748544784965,1.0678,2657.1,2656.6,10.0]
[1748544785137,1.0678,2657.1,2656.7,10.0]
[1748544785293,1.0873,2657.4,2657.0,28.874227]
[1748544785488,1.0873,2657.4,2657.0,18.874227]
[1748544786062,1.0873,2657.4,2657.0,16.72402]
[1748544786192,1.0873,2657.4,2657.0,16.4301]
[1748544786388,1.0873,2657.4,2657.0,16.1681]
[1748544787333,3.76225541,2658.0,2657.1,1.1039]
[1748544787534,1.0252,2658.0,2657.2,0.6]
[1748544787699,1.0252,2657.9,2657.2,0.6]
[1748544788028,1.0284,2657.7,2657.2,0.6]
[1748544788791,1.0284,2657.5,2657.2,0.6]
[1748544789090,1.0284,2657.3,2656.5,10.0]
[1748544789294,1.0284,2657.3,2656.4,6.4036581]
[1748544789295,1.0284,2657.3,2656.7,10.0]
[1748544789499,1.0284,2657.3,2656.7,10.331912]
[1748544789700,1.0284,2657.3,2656.6,10.584992]
[1748544789939,1.0284,2657.3,2656.5,11.746195]
[1748544790134,1.0284,2657.3,2656.6,10.584892]
[1748544790351,1.0284,2657.3,2656.3,5.53495308]
[1748544790352,1.0213,2657.1,2656.3,10.833564]
[1748544790500,5.0143,2657.0,2656.3,3.583159]
[1748544791434,3.993,2657.0,2656.3,3.583159]
[1748544791735,1.0213,2656.9,2656.1,15.652052]
[1748544791937,1.0213,2656.8,2656.1,10.823709]
[1748544792239,1.0213,2656.8,2656.1,10.087199]
[1748544792439,1.0213,2656.8,2655.8,14.967913]
[1748544792944,1.0899,2656.6,2656.3,0.6]
[1748544793442,1.0899,2656.6,2655.9,14.304194]
[1748544793631,1.0899,2656.6,2656.1,10.0]
[1748544793832,1.0899,2656.6,2656.0,2.0710294]
[1748544794139,5.0829,2656.8,2656.3,17.191583]
[1748544794356,5.0829,2656.8,2656.3,13.9055]
[1748544794504,5.0829,2656.8,2656.3,3.9155]
[1748544795901,5.0829,2656.8,2656.3,2.7131]
[1748544797126,5.0829,2656.8,2656.3,10.0]
[1748544797339,5.0829,2656.8,2656.3,11.615]
[1748544797552,5.0829,2656.8,2656.5,0.6]
[1748544797759,1.0899,2656.8,2656.5,0.6]
[1748544797955,5.0819,2656.8,2656.5,0.6]
[1748544798260,5.59009,2656.8,2656.5,0.6]
[1748544798460,1.0813,2657.3,2656.2,1.89068829]
[1748544798632,1.0813,2657.2,2656.4,10.0]
[1748544798829,1.0813,2657.2,2656.6,10.0]
[1748544799040,1.0632,2657.1,2656.3,2.000878]
[1748544799365,9.4993149,2657.1,2656.2,1.89068829]
[1748544799656,1.0632,2656.9,2656.3,2.117083]
[1748544799858,3.991,2656.8,2656.3,2.117083]
[1748544800727,3.991,2656.8,2656.2,1.89068829]
[1748544800923,3.991,2656.8,2656.3,2.786271]
[1748544801629,3.991,2656.8,2656.2,1.89068829]
[1748544801836,3.991,2656.8,2656.1,4.71357321]
[1748544802046,1.0078,2656.7,2656.1,16.65399321]
[1748544802243,1.0078,2656.7,2656.2,10.0]
[1748544802443,1.0078,2656.7,2656.3,10.0]
[1748544802628,1.0078,2656.7,2656.3,0.6]
[1748544802835,1.0583,2656.6,2656.3,0.6]
[1748544803787,1.0583,2656.6,2655.4,1.0393]
[1748544803944,3.76487013,2656.2,2655.2,1.89068829]
[1748544804268,0.55992132,2656.7,2655.4,10.0]
[1748544804269,1.0583,2656.0,2655.4,10.0]
[1748544804481,5.0483,2656.0,2655.3,10.0]
[1748544804642,5.0483,2656.0,2655.4,10.0]
[1748544804831,5.55313,2656.0,2655.3,10.0]
[1748544805031,5.55313,2656.0,2655.2,1.89068829]
[1748544805032,5.55313,2656.0,2655.2,11.89068829]
[1748544805383,5.55313,2656.0,2654.8,4.30229183]
[1748544805384,1.0062,2655.8,2654.8,21.791348]
[1748544805535,1.0062,2655.7,2654.8,2.672438]
[1748544805878,1.0233,2655.6,2654.7,17.393618]
[1748544806043,5.0133,2655.5,2654.7,2.166302]
[1748544806573,5.0133,2655.5,2654.8,10.0]
[1748544806731,5.0133,2655.5,2654.6,4.51755148]
[1748544806732,5.0133,2655.5,2654.6,17.879991]
[1748544807075,0.50483,2656.0,2655.1,16.596943]
[1748544807278,3.99,2655.9,2655.1,2.84876313]
[1748544807566,3.99,2655.9,2655.1,16.603943]
[1748544808154,3.99,2655.9,2655.1,4.51767048]
[1748544808361,1.0313,2655.8,2655.1,4.51767048]
[1748544809785,1.0313,2655.8,2655.2,17.656858]
[1748544809929,1.0313,2655.8,2655.4,10.0]
[1748544810265,1.0313,2655.8,2655.3,15.481441]
[1748544810266,5.0213,2655.8,2655.3,4.840441]
[1748544810478,5.0213,2655.8,2655.3,1.93581115]
[1748544811865,5.0213,2655.8,2655.3,3.123]
[1748544812282,5.0213,2655.8,2655.3,2.03]
[1748544812577,5.0213,2655.8,2655.2,10.0]
[1748544812578,5.0213,2655.8,2655.2,11.3419]
[1748544812743,5.0213,2655.8,2655.0,6.40835877]
[1748544813585,5.0213,2655.8,2655.2,10.0]
[1748544813883,5.95042629,2655.8,2655.1,3.04918]
[1748544814049,5.95042629,2655.8,2655.2,10.0]
[1748544814584,5.95042629,2655.8,2655.1,4.84918]
[1748544814884,5.95042629,2655.8,2655.0,6.40835877]
[1748544814885,5.95042629,2655.8,2655.2,10.0]
[1748544815085,5.95042629,2655.8,2655.1,17.382165]
[1748544815767,5.95042629,2655.8,2655.1,15.22515]
[1748544815969,5.95042629,2655.8,2655.1,2.44395]
[1748544816145,0.97156298,2655.7,2655.0,6.40835877]
[1748544816351,5.0213,2655.8,2655.0,6.40835877]
[1748544817057,5.0213,2655.8,2655.1,11.35168]
[1748544817261,5.0213,2655.8,2655.1,10.25868]
[1748544817558,5.0213,2655.8,2655.2,10.0]
[1748544817759,0.9894,2655.7,2654.9,10.0]
[1748544817961,0.9894,2655.7,2655.0,10.0]
[1748544817962,1.49153,2655.7,2655.0,10.0]
[1748544818283,1.49153,2655.7,2655.0,21.612905]
[1748544818443,3.989,2655.6,2655.0,11.612905]
[1748544819670,3.989,2655.6,2655.0,21.612905]
[1748544819950,3.989,2655.6,2655.0,10.0]
[1748544820352,3.989,2655.6,2655.1,10.0]
[1748544820899,0.9894,2655.5,2654.9,10.0]
[1748544821100,0.9894,2655.5,2654.9,14.043689]
[1748544821258,0.9894,2655.5,2655.0,10.0]
[1748544821593,1.48724,2655.5,2655.0,10.0]
[1748544821755,1.48724,2655.5,2654.9,10.0]
[1748544821951,1.48724,2655.5,2655.0,10.0]
[1748544822147,1.48724,2655.5,2654.9,2.286055]
[1748544822347,1.48724,2655.5,2655.0,10.0]
[1748544822600,1.48724,2655.5,2654.9,2.286055]
[1748544822895,1.0677,2655.3,2654.8,0.6]
[1748544823498,3.988,2655.2,2654.8,0.6]
[1748544824388,1.028,2655.1,2654.8,0.6]
[1748544824592,3.988,2655.1,2654.8,0.6]
[1748544825788,3.988,2655.1,2654.8,5.11745318]
[1748544825987,3.987,2655.2,2654.8,5.11745318]
[1748544826188,3.987,2655.2,2654.8,0.6]
[1748544826387,3.987,2655.2,2654.8,10.6]
[1748544828571,3.987,2655.2,2654.8,0.6]
[1748544834389,3.987,2655.2,2654.3,24.162463]
[1748544834597,3.987,2655.2,2654.7,16.082167]
[1748544835201,3.987,2655.2,2654.1,10.0]
[1748544835202,0.9802,2655.1,2654.1,10.0]
[1748544835402,0.9802,2655.1,2654.0,20.651668]
[1748544836027,0.9802,2655.1,2654.0,19.634778]
[1748544836227,0.87334732,2655.0,2654.1,17.179787]
[1748544836394,0.87334732,2655.0,2654.2,15.927715]
[1748544838345,0.87334732,2655.0,2654.3,1.89068829]
[1748544838857,3.985,2655.0,2654.7,1.89068829]
[1748544839065,4.9652,2655.1,2654.7,1.89068829]
[1748544839846,0.9802,2655.1,2654.7,1.89068829]
[1748544843148,0.9802,2655.1,2654.8,13.467191]
[1748544843453,1.0158,2655.4,2654.8,23.950284]
[1748544843947,1.0158,2655.4,2654.8,21.918881]
[1748544844314,1.0158,2655.4,2654.8,19.044273]
[1748544844646,1.0158,2655.4,2655.0,7.331259]
[1748544844952,1.0158,2655.4,2655.0,17.360059]
[1748544845149,1.0158,2655.4,2655.1,10.0]
[1748544845323,1.0158,2655.4,2655.0,13.130059]
[1748544845655,1.0158,2655.4,2654.8,10.0]
[1748544845813,1.0158,2655.4,2654.7,1.89068829]
[1748544846013,1.51578,2655.4,2654.7,1.89068829]
[1748544846453,1.0239,2655.3,2654.8,2.041425]
[1748544847742,1.0239,2655.3,2654.7,1.89068829]
[1748544848429,1.0239,2655.3,2654.8,4.743628]
[1748544848926,3.983,2655.2,2654.8,4.743628]
[1748544849566,3.983,2655.2,2654.8,1.66343163]
[1748544851653,3.983,2655.2,2654.7,1.89068829]
[1748544851826,3.983,2655.2,2654.8,4.871219]
[1748544852960,3.982,2655.2,2654.8,4.871219]
[1748544853247,5.0059,2655.3,2654.8,4.871219]
[1748544854359,5.0059,2655.3,2654.7,1.89068829]
[1748544854564,5.0059,2655.3,2654.7,3.53150555]
[1748544854733,5.0059,2655.3,2654.9,10.0]
[1748544855834,5.0059,2655.3,2654.8,11.54636]
[1748544856383,5.0059,2655.3,2654.7,1.89068829]
[1748544856835,1.0232,2655.2,2654.5,10.0]
[1748544857036,1.52379,2655.2,2654.4,25.502685]
[1748544857277,1.52379,2655.2,2654.4,15.502685]
[1748544858080,1.52379,2655.2,2654.4,13.376715]
[1748544858463,1.52379,2655.2,2654.4,12.519485]
[1748544858657,1.0232,2655.1,2654.4,12.519485]
[1748544858992,1.0232,2655.1,2654.1,0.31228292]
[1748544859289,1.0232,2655.1,2654.0,15.651745]
[1748544859290,1.0232,2655.0,2654.0,15.651745]
[1748544859447,1.0232,2655.0,2653.9,20.239619]
[1748544859646,1.0232,2655.0,2653.9,12.844801]
[1748544859844,1.0232,2654.8,2654.0,13.41828]
[1748544860087,5.0042,2654.7,2654.0,13.41828]
[1748544861570,5.0042,2654.7,2654.0,12.734862]
[1748544862601,0.9949,2654.6,2653.9,2.05439]
[1748544862809,0.9949,2654.6,2653.8,0.13599802]
[1748544862984,1.0271,2654.4,2653.8,0.13599802]
[1748544863303,1.0271,2654.4,2653.9,11.81609]
[1748544864404,1.0271,2654.4,2653.9,7.489755]
[1748544865202,1.0271,2654.4,2653.9,4.753463]
[1748544865404,1.0271,2654.4,2653.8,0.13599802]
[1748544866864,1.0271,2654.4,2653.9,2.713463]
[1748544867570,1.0271,2654.4,2653.9,2.06514]
[1748544867770,1.0271,2654.4,2653.8,0.13599802]
[1748544867970,1.0271,2654.4,2653.9,3.431546]
[1748544868167,1.0271,2654.4,2653.9,3.7883004]
[1748544868375,1.0271,2654.4,2654.1,25.389316]
[1748544869136,1.0271,2654.4,2654.1,7.35665]
[1748544869290,1.0271,2654.4,2654.2,10.0]
[1748544869610,1.0271,2654.4,2654.1,10.0]
[1748544869784,1.0271,2654.4,2653.9,12.24744269]
[1748544870131,1.0271,2654.4,2653.9,1.89068829]
[1748544870276,1.0271,2654.4,2653.8,10.0]
[1748544870619,1.0271,2654.4,2653.7,5.575907]
[1748544870833,1.0271,2654.4,2653.6,21.933884]
[1748544871700,1.0271,2654.4,2653.6,26.45302396]
[1748544872037,5.0061,2654.4,2653.8,19.387775]
[1748544872241,5.0061,2654.4,2653.7,2.83437123]
[1748544872544,5.0061,2654.4,2653.7,19.616471]
[1748544873641,5.0061,2654.4,2653.7,18.490317]
[1748544874338,5.0061,2654.4,2653.8,2.221728]
[1748544874536,5.0061,2654.4,2653.9,2.577663]
[1748544875102,5.0061,2654.4,2653.8,10.0]
[1748544875302,1.0168,2654.3,2653.7,3.560415]
[1748544875517,1.0168,2654.3,2653.8,2.134486]
[1748544876805,1.0168,2654.3,2653.8,2.696716]
[1748544877955,1.0168,2654.3,2653.8,2.276716]
[1748544878303,1.0168,2654.3,2653.8,10.0]
[1748544878732,1.0168,2654.3,2653.8,2.27823]
[1748544878965,1.51638,2654.3,2653.8,10.0]
[1748544879129,1.0333,2654.2,2653.5,1.89068829]
[1748544879333,1.0333,2654.2,2653.6,11.24507]
[1748544879846,1.0333,2654.2,2653.6,14.438446]
[1748544880048,1.0333,2654.2,2653.5,1.89068829]
[1748544880049,1.0333,2654.1,2653.5,1.89068829]
[1748544880229,1.0333,2654.1,2653.6,11.02807]
[1748544880763,1.0333,2654.1,2653.6,7.743549]
[1748544880969,1.0333,2654.1,2653.5,1.89068829]
[1748544880970,1.0333,2654.1,2653.8,10.0]
[1748544881129,1.0333,2654.1,2653.8,4.51932105]
[1748544882541,1.0333,2654.1,2653.7,4.51932105]
[1748544884678,1.0333,2654.1,2653.7,7.327807]
[1748544884878,1.0333,2654.1,2653.8,10.0]
[1748544885037,1.0333,2654.1,2653.7,9.757807]
[1748544886050,1.0333,2654.1,2653.7,4.959938]
[1748544886279,1.0333,2654.1,2653.9,10.0]
[1748544886486,1.0333,2654.1,2653.7,9.629924]
[1748544887193,1.0333,2654.1,2653.8,10.0]
[1748544887378,1.0333,2654.1,2653.6,4.51932105]
[1748544887564,1.0333,2654.1,2653.8,10.0]
[1748544887744,1.0333,2654.1,2653.7,2.391129]
[1748544887943,1.0333,2654.1,2653.8,10.0]
[1748544888146,1.0333,2654.1,2653.6,4.51932105]
[1748544888390,1.0333,2654.1,2653.8,10.0]
[1748544888764,1.0333,2654.1,2653.7,15.241129]
[1748544890287,1.0333,2654.1,2653.7,14.755457]
[1748544890493,1.0333,2654.1,2653.7,13.415457]
[1748544891190,1.0333,2654.1,2653.7,2.078457]
[1748544891363,1.0333,2654.1,2653.6,15.009557]
[1748544892254,1.0333,2654.1,2653.7,10.0]
[1748544892454,1.0333,2654.1,2653.7,4.51914378]
[1748544892894,1.0333,2654.1,2653.7,8.782557]
[1748544893387,1.0333,2654.1,2653.8,10.0]
[1748544893600,1.0333,2654.1,2653.7,3.169662]
[1748544893799,1.0333,2654.1,2653.8,10.0]
[1748544894390,1.0333,2654.1,2653.7,18.805019]
[1748544894598,1.0333,2654.1,2653.7,15.739919]
[1748544896369,1.0333,2654.1,2653.7,2.21497511]
[1748544896617,1.0333,2654.1,2653.7,20.343199]
[1748544896799,1.0333,2654.1,2653.7,15.739919]
[1748544897001,1.0333,2654.1,2653.8,10.0]
[1748544897376,1.0333,2654.1,2653.7,15.739919]
[1748544897802,1.0333,2654.1,2653.8,10.0]
[1748544898073,1.0333,2654.1,2653.7,13.784654]
[1748544898607,1.0333,2654.1,2653.7,15.80410261]
[1748544898782,1.0333,2654.1,2653.8,10.0]
[1748544898987,1.0333,2654.1,2653.7,23.784654]
[1748544899922,1.0333,2654.1,2653.7,11.354654]
[1748544900125,1.0333,2654.1,2653.7,5.739919]
[1748544900413,1.0333,2654.1,2653.7,15.318919]
[1748544900719,1.0333,2654.1,2653.8,10.0]
[1748544900879,1.53423,2654.1,2653.5,1.89068829]
[1748544901085,1.0333,2654.1,2653.5,1.89068829]
[1748544902692,1.0333,2654.1,2653.6,10.768557]
[1748544904483,5.0053,2654.1,2653.6,10.768557]
[1748544905089,1.0279,2654.0,2653.6,10.768557]
[1748544905617,1.0279,2654.0,2653.5,1.89068829]
[1748544905821,1.0279,2654.0,2653.6,11.324439]
[1748544910446,1.0279,2654.0,2653.6,12.071439]
[1748544910741,4.9979,2654.0,2653.6,12.071439]
[1748544911512,1.0279,2654.0,2653.6,12.071439]
[1748544911869,1.0745,2654.3,2654.0,28.184058]
[1748544912161,1.0745,2654.3,2654.0,26.014818]
[1748544912715,5.7745,2654.5,2654.0,26.014818]
[1748544912910,5.7745,2654.5,2654.0,4.51830407]
[1748544913217,5.7745,2654.5,2654.3,1.89068829]
[1748544913415,9.7445,2654.5,2654.3,1.89068829]
[1748544913648,5.0445,2654.5,2654.3,1.89068829]
[1748544915184,1.0745,2654.5,2654.3,1.89068829]
[1748544915394,5.0435,2654.5,2654.3,1.89068829]
[1748544915603,1.0745,2654.5,2654.3,1.89068829]
[1748544915899,3.969,2654.6,2654.3,2.07975712]
[1748544916077,0.9997,2655.0,2654.3,2.07975712]
[1748544916249,3.969,2654.7,2654.3,2.07975712]
[1748544917985,0.9997,2655.0,2654.3,2.07975712]
[1748544918187,3.968,2654.7,2654.3,2.07975712]
[1748544920894,3.968,2654.8,2654.5,18.651984]
[1748544921054,3.968,2654.8,2654.5,9.024692]
[1748544921451,3.968,2654.8,2654.5,7.075223]
[1748544921656,3.967,2654.8,2654.5,7.075223]
[1748544921887,3.967,2654.8,2654.5,2.43328972]
[1748544922151,3.967,2654.8,2654.5,9.347123]
[1748544922557,3.967,2654.8,2654.5,6.917123]
[1748544923907,0.9997,2655.0,2654.7,11.89068829]
[1748544924103,1.018,2655.3,2654.7,2.28688829]
[1748544924318,3.966,2655.2,2654.7,2.28688829]
[1748544924602,3.966,2655.2,2654.8,0.22868883]
[1748544927384,1.018,2655.3,2654.8,0.22868883]
[1748544927589,4.983,2655.3,2654.9,10.0]
[1748544928617,4.983,2655.3,2654.4,2.94667686]
[1748544928760,1.0,2655.2,2654.4,0.3962]
[1748544928956,1.0,2655.2,2654.4,11.004325]
[1748544929573,1.0,2655.2,2654.4,10.656325]
[1748544930395,1.0,2655.2,2654.4,22.068699]
[1748544930574,1.0,2655.2,2654.4,12.068699]
[1748544930770,0.4965,2655.1,2654.4,12.068699]
[1748544930972,1.0,2655.0,2654.4,12.068699]
[1748544934526,1.0319,2655.2,2654.6,4.91399726]
[1748544934696,3.963,2655.1,2654.7,15.911461]
[1748544934905,1.0319,2655.2,2654.7,15.911461]
[1748544935212,1.0319,2655.2,2654.8,18.367999]
[1748544935540,1.0319,2655.2,2654.8,16.194719]
[1748544936591,1.0319,2655.2,2654.7,2.27161465]
[1748544936790,1.0319,2655.2,2654.8,2.3299]
[1748544937010,1.0319,2655.2,2654.8,4.090157]
[1748544937217,1.0319,2655.2,2654.7,2.27161465]
[1748544937388,1.0319,2655.2,2654.8,14.26393847]
[1748544937585,1.0319,2655.2,2654.8,1.26678147]
[1748544938338,4.7,2655.4,2655.1,22.324861]
[1748544938490,4.7,2655.4,2655.1,13.89286088]
[1748544938899,4.7,2655.4,2655.1,24.508141]
[1748544939238,4.7,2655.4,2655.1,3.09160935]
[1748544940245,4.9842,2655.6,2655.1,3.09160935]
[1748544942052,1.0457,2656.4,2655.6,21.479644]
[1748544942203,1.0457,2656.4,2655.8,1.89068829]
[1748544942407,5.0067,2656.4,2655.9,16.400132]
[1748544942655,1.0457,2656.4,2656.0,10.0]
[1748544942802,3.961,2656.3,2656.0,10.0]
[1748544943147,4.46167,2656.3,2655.9,9.615146]
[1748544943300,3.961,2656.3,2655.9,9.615146]
[1748544946740,3.961,2656.3,2655.7,9.350219]
[1748544946925,3.961,2656.3,2655.4,4.51574117]
[1748544946926,1.0556,2656.2,2655.5,5.344517]
[1748544947113,1.0556,2656.2,2655.3,18.346603]
[1748544947314,1.0556,2656.2,2655.3,17.89068]
[1748544947528,1.0556,2656.0,2655.3,17.51768]
[1748544948136,1.0556,2656.0,2655.4,18.271343]
[1748544948455,1.0556,2656.0,2655.4,16.806814]
[1748544948664,1.0556,2656.0,2655.4,16.433814]
[1748544948835,1.0556,2656.0,2655.4,15.340814]
[1748544950618,1.0556,2656.0,2655.4,10.351617]
[1748544950854,1.0556,2656.0,2655.7,27.904667]
[1748544951041,1.0556,2656.0,2655.7,15.39321]
[1748544951949,1.0556,2656.0,2655.5,4.51627368]
[1748544951950,1.0556,2656.0,2655.6,18.142161]
[1748544952970,1.0556,2656.0,2655.7,15.40421]
[1748544954127,1.0556,2656.0,2655.7,17.29489829]
[1748544954486,1.0556,2656.0,2655.8,15.03121]
[1748544956925,1.0556,2656.0,2655.7,1.89068829]
[1748544956926,1.0304,2655.9,2655.0,3.090451]
[1748544957128,1.0304,2655.9,2655.2,11.89068829]
[1748544957351,1.0304,2655.9,2655.3,18.351984]
[1748544957571,1.0304,2655.9,2655.2,1.89068829]
[1748544957742,1.0304,2655.9,2655.3,2.084673]
[1748544959343,3.956,2655.8,2655.3,2.084673]
[1748544960851,1.0304,2655.9,2655.3,6.60116902]
[1748544961190,3.956,2655.8,2655.4,18.381523]
[1748544961672,3.956,2655.8,2655.3,18.933323]
[1748544961852,3.956,2655.8,2655.3,18.307552]
[1748544962055,1.0311,2655.7,2655.3,12.175549]
[1748544962463,1.0311,2655.7,2655.3,8.815514]
[1748544962781,1.52981,2655.7,2655.3,8.442514]
[1748544963837,4.9861,2656.0,2655.4,4.51651772]
[1748544965181,4.9861,2656.0,2655.4,10.39177]
[1748544965473,0.9822,2655.9,2655.3,10.397636]
[1748544966238,0.9822,2655.9,2655.0,15.091731]
[1748544966441,0.9814,2655.7,2655.0,15.091731]
[1748544967437,0.9814,2655.7,2655.1,16.449296]
[1748544967976,0.9814,2655.7,2655.1,15.008646]
[1748544968177,0.9814,2655.7,2655.1,14.654646]
[1748544968479,0.9814,2655.7,2655.1,10.903427]
[1748544968704,3.955,2655.6,2655.1,10.903427]
[1748544968978,1.49864,2655.5,2654.9,14.098543]
[1748544969386,1.49864,2655.5,2654.9,13.596285]
[1748544969585,1.005,2655.5,2654.8,23.717152]
[1748544969767,1.005,2655.5,2655.3,16.472576]
[1748544969978,1.005,2655.5,2655.3,13.954]
[1748544971872,1.005,2655.5,2655.3,13.2051]
[1748544972469,1.005,2655.5,2655.2,1.89068829]
[1748544972876,1.005,2655.5,2655.1,10.0]
[1748544973060,1.005,2655.5,2655.0,15.842288]
[1748544973266,1.005,2655.5,2655.0,14.498388]
[1748544975593,1.0052,2655.4,2654.6,4.2399]
[1748544975903,1.0052,2655.4,2654.3,0.70306883]
[1748544975904,3.76591667,2655.4,2654.5,7.7565]
[1748544976088,1.0052,2655.3,2654.5,5.361542]
[1748544976272,1.0052,2655.3,2654.3,2.07975712]
[1748544976273,1.0052,2655.1,2654.3,1.89068829]
[1748544976475,1.0052,2655.1,2654.5,10.0]
[1748544976707,1.0052,2655.1,2654.6,10.0]
[1748544977001,1.0052,2655.1,2654.4,12.677227]
[1748544977200,0.87242619,2655.1,2654.4,12.322227]
[1748544977406,1.0898,2655.0,2654.4,2.676326]
[1748544984195,1.0898,2655.0,2654.6,0.6]
[1748544986209,3.952,2654.9,2654.6,0.6]
[1748544987441,1.0755,2655.3,2654.8,30.574902]
[1748544987592,1.0755,2655.3,2654.8,29.21694]
[1748544988221,1.0755,2655.3,2654.8,16.513254]
[1748544988795,1.0755,2655.3,2654.6,0.6]
[1748544989011,1.0755,2655.3,2654.7,21.222982]
[1748544989214,1.0755,2655.3,2654.7,18.871892]
[1748544990338,1.0755,2655.3,2654.7,18.038047]
[1748544990639,1.0755,2655.3,2654.8,17.644906]
[1748544991797,1.0755,2655.3,2654.8,12.68779]
[1748544992011,1.0755,2655.3,2654.8,11.988]
[1748544992209,2.04815,2655.3,2654.7,10.422041]
[1748544992429,5.99815,2655.3,2654.7,10.422041]
[1748544993009,5.0255,2655.3,2654.7,10.422041]
[1748544994140,1.0755,2655.3,2654.7,10.422041]
[1748544994299,5.0255,2655.3,2654.7,10.422041]
[1748544998255,5.0255,2655.3,2654.6,0.6]
[1748544998422,5.0255,2655.3,2654.7,15.098655]
[1748545001238,5.99805,2655.3,2654.7,15.098655]
[1748545006118,5.99805,2655.3,2654.7,13.538067]
[1748545006355,1.0595,2655.2,2654.7,13.538067]
[1748545009360,1.0595,2655.2,2654.7,13.027357]
[1748545010226,1.0595,2655.2,2654.7,10.529604]
[1748545010427,1.0261,2655.1,2654.7,10.529604]
[1748545013740,1.0261,2655.1,2654.7,9.568445]
[1748545013981,1.0261,2655.1,2654.7,8.815667]
[1748545019874,4.9701,2655.1,2654.7,8.815667]
[1748545021318,1.0261,2655.1,2654.7,8.815667]
[1748545021439,4.9701,2655.1,2654.7,8.815667]
[1748545023674,5.5739305,2655.1,2654.7,8.815667]
[1748545027687,4.9701,2655.1,2654.7,8.815667]
[1748545028978,1.0261,2655.1,2654.7,8.815667]
[1748545029177,1.0261,2655.1,2654.8,20.789816]
[1748545029777,5.705,2655.4,2655.1,13.154109]
[1748545029981,1.005,2655.4,2655.1,12.896064]
[1748545030159,1.005,2655.4,2655.1,2.6629]
[1748545030495,1.005,2655.4,2655.1,2.2439]
[1748545030680,1.4997,2655.4,2655.1,2.2439]
[1748545030879,1.4997,2655.4,2654.7,27.72944]
[1748545031078,1.005,2655.4,2654.7,13.55778]
[1748545031482,1.005,2655.4,2654.7,11.164622]
[1748545031997,1.005,2655.4,2654.7,4.886481]
[1748545032492,1.005,2655.4,2654.8,17.456784]
[1748545033193,3.941,2655.3,2654.9,10.88138]
[1748545033501,3.941,2655.3,2654.7,4.51748952]
[1748545033502,3.941,2655.3,2654.7,14.160373]
[1748545034308,3.941,2655.3,2654.8,21.368564]
[1748545034516,3.941,2655.3,2654.8,18.26225]
[1748545034915,3.941,2655.3,2654.8,8.92745469]
[1748545035226,3.941,2655.3,2654.8,16.46325]
[1748545035517,3.941,2655.3,2654.8,8.946897]
[1748545037820,1.005,2655.4,2654.8,8.946897]
[1748545037982,3.94,2655.2,2654.8,8.946897]
[1748545038644,3.94,2655.2,2654.7,1.92778625]
[1748545038780,1.3429,2655.1,2654.6,5.11748952]
[1748545038989,1.3429,2655.1,2654.6,0.6]
[1748545038990,0.9489,2655.0,2654.6,0.6]
[1748545039753,0.394,2655.1,2654.6,0.6]